Workbook

Sheet ORÇAMENTO
A1: <---- NUMERAR SERVIÇOS PARA CPU | E1: Ministério do Desenvolvimento Regional
E2: Companhia de Desenvolvimento dos Vales do São Francisco e do Parnaíba
E3: 1ª Superintendência Regional
B5: OBRA: | C5: DRENAGEM E PAVIMENTAÇÃO ASFÁLTICA EM CBUQ - AV. JOANA GOMES DOS SANTOS E ROTATÓRIA (SÃO JOÃO DO PACUÍ / MG) | I5: BDI Serviços (%): | L5: ='BDI SERV'!E26 -> 20.85
B6: DATA: | C6: ABRIL / 2025 | I6: BDI Diferenciado Serviços (%): | L6: ='BDI FORN'!D31 -> 15
B7: PRAZO DE EXECUÇÃO: 180 DIAS | I7: BDI Fornecimentos (%): | L7: ='BDI FORN'!D31 -> 15
B8: PLANILHA DE ORÇAMENTAÇÃO
B9: ITEM | C9: CÓDIGO | D9: FONTE | E9: DISCRIMINAÇÃO | F9: TIPO | G9: UNID. | H9: QUANT. | I9: VR.UNIT.S/BDI | J9: PR. UNIT.C/BDI | K9: C. TOT.S/BDI | L9: P. TOT.C/BDI
A10: A | B10: 1 | E10: SERVIÇOS PRELIMINARES | L10: =SUM(L11:L19) -> 202224.08
A11: 1 | B11: 1.1 | C11: CPU.1 | D11: CODEVASF | E11: MOBILIZAÇÃO E DESMOBILIZAÇÃO | F11: SERV | G11: GL | H11: 1 | I11: =VLOOKUP(A11,'CPU-SERV'!A:K,11,0) -> 15342.3 | J11: =TRUNC(_xlfn.IFS(F11="SERV",I11*(1+$L$5/100),F11="SERV DIF",I11*(1+$L$6/100),F11="FORN",I11*(1+$L$7/100)),2) -> 18541.16 | K11: =TRUNC(H11*I11,2) -> 15342.3 | L11: =TRUNC(H11*J11,2) -> 18541.16
A12: 2 | B12: 1.2 | C12: CPU.2 | D12: CODEVASF | E12: ADMINISTRAÇÃO LOCAL | F12: SERV | G12: GL | H12: 1 | I12: =VLOOKUP(A12,'CPU-SERV'!A:K,11,0) -> 115361.96 | J12: =TRUNC(_xlfn.IFS(F12="SERV",I12*(1+$L$5/100),F12="SERV DIF",I12*(1+$L$6/100),F12="FORN",I12*(1+$L$7/100)),2) -> 139414.92 | K12: =TRUNC(H12*I12,2) -> 115361.96 | L12: =TRUNC(H12*J12,2) -> 139414.92
A13: 3 | B13: 1.3 | C13: CPU.3 | D13: CODEVASF | E13: CANTEIRO DE OBRAS | F13: SERV | G13: GL | H13: 1 | I13: =VLOOKUP(A13,'CPU-SERV'!A:K,11,0) -> 13857.3 | J13: =TRUNC(_xlfn.IFS(F13="SERV",I13*(1+$L$5/100),F13="SERV DIF",I13*(1+$L$6/100),F13="FORN",I13*(1+$L$7/100)),2) -> 16746.54 | K13: 13857.3 | L13: 16746.54
A14: 4 | B14: 1.4 | C14: 103689 | D14: SINAPI | E14: PLACA DE OBRA EM CHAPA DE AÇO GALVANIZADO | F14: SERV | G14: M2 | H14: 4 | I14: =VLOOKUP(A14,'CPU-SERV'!A:K,11,0) -> 351.42 | J14: =TRUNC(_xlfn.IFS(F14="SERV",I14*(1+$L$5/100),F14="SERV DIF",I14*(1+$L$6/100),F14="FORN",I14*(1+$L$7/100)),2) -> 424.69 | K14: 1405.68 | L14: 1698.76
A15: 6 | B15: 1.5 | C15: 78472 | D15: SINAPI | E15: SERVIÇOS TOPOGRÁFICOS PARA PAVIMENTAÇÃO, INCLUSIVE LEVANTAMENTO PLANIALTIMÉTRICO CADASTRAL, GERAÇÃO DE NOTAS DE SERVIÇO, SEÇÕES TRANSVERSAIS E GREIDE, ESTAQUEAMENTO E ACOMPANHAMENTO EXECUTIVO | F15: SERV | G15: M2 | H15: 14800 | I15: =VLOOKUP(A15,'CPU-SERV'!A:K,11,0) -> 0.46 | J15: =TRUNC(_xlfn.IFS(F15="SERV",I15*(1+$L$5/100),F15="SERV DIF",I15*(1+$L$6/100),F15="FORN",I15*(1+$L$7/100)),2) -> 0.55 | K15: 6808 | L15: 8140
A16: 6.1 | B16: 1.6 | C16: 5501700 | D16: SICRO | E16: DESMATAMENTO, DESTOCAMENTO E LIMPEZA COM ÁRVORES DE DIÂMETRO ATÉ 0,15M | F16: SERV | G16: M2 | H16: 11000 | I16: =VLOOKUP(A16,'CPU-SERV'!A:K,11,0) -> 0.53 | J16: =TRUNC(_xlfn.IFS(F16="SERV",I16*(1+$L$5/100),F16="SERV DIF",I16*(1+$L$6/100),F16="FORN",I16*(1+$L$7/100)),2) -> 0.64 | K16: 5830 | L16: 7040
A17: 6.2 | B17: 1.7 | C17: 4915667 | D17: SICRO | E17: REMOÇÃO MECANIZADA DE REVESTIMENTO ASFÁLTICO | F17: SERV | G17: M3 | H17: 90 | I17: =VLOOKUP(A17,'CPU-SERV'!A:K,11,0) -> 12.19 | J17: =TRUNC(_xlfn.IFS(F17="SERV",I17*(1+$L$5/100),F17="SERV DIF",I17*(1+$L$6/100),F17="FORN",I17*(1+$L$7/100)),2) -> 14.73 | K17: 1097.1 | L17: 1325.7
A18: 6.3 | B18: 1.8 | C18: 1619003 | D18: SICRO | E18: DEMOLIÇÃO DE CONCRETO SIMPLES (MEIO FIO, SARJETA, PASSEIOS, ETC.), DE FORMA MECANIZADA | F18: SERV | G18: M3 | H18: 100 | I18: =VLOOKUP(A18,'CPU-SERV'!A:K,11,0) -> 60.96 | J18: =TRUNC(_xlfn.IFS(F18="SERV",I18*(1+$L$5/100),F18="SERV DIF",I18*(1+$L$6/100),F18="FORN",I18*(1+$L$7/100)),2) -> 73.67 | K18: 6096 | L18: 7367
A19: 6.4 | B19: 1.9 | C19: 5914351 | D19: SICRO | E19: CARGA, MANOBRA E DESCARGA DE MATERIAL EM GERAL (ENTULHO) EM CAMINHÃO BASCULANTE | F19: SERV | G19: T | H19: 600 | I19: =VLOOKUP(A19,'CPU-SERV'!A:K,11,0) -> 2.69 | J19: =TRUNC(_xlfn.IFS(F19="SERV",I19*(1+$L$5/100),F19="SERV DIF",I19*(1+$L$6/100),F19="FORN",I19*(1+$L$7/100)),2) -> 3.25 | K19: 1614 | L19: 1950
A20: B | B20: 2 | E20: TERRAPLANAGEM E PAVIMENTAÇÃO | L20: =SUM(L21:L27) -> 682114.15
A21: 7 | B21: 2.1 | C21: 5502114 | D21: SICRO | E21: ESCAVAÇÃO, CARGA E TRANSPORTE DE MATERIAL DE 1ª CATEGORIA - DMT 1.000 A 1.200M, CAMINHO DE SERVIÇO EM REVESTIMENTO PRIMÁRIO | F21: SERV | G21: M3 | H21: 30700 | I21: =VLOOKUP(A21,'CPU-SERV'!A:K,11,0) -> 6.73 | J21: =TRUNC(_xlfn.IFS(F21="SERV",I21*(1+$L$5/100),F21="SERV DIF",I21*(1+$L$6/100),F21="FORN",I21*(1+$L$7/100)),2) -> 8.13 | K21: =TRUNC(H21*I21,2) -> 206611 | L21: =TRUNC(H21*J21,2) -> 249591
A22: 8 | B22: 2.2 | C22: 5502978 | D22: SICRO | E22: COMPACTAÇÃO DE ATERROS A 100% DO PROCTOR NORMAL | F22: SERV | G22: M3 | H22: 29000 | I22: =VLOOKUP(A22,'CPU-SERV'!A:K,11,0) -> 5.03 | J22: =TRUNC(_xlfn.IFS(F22="SERV",I22*(1+$L$5/100),F22="SERV DIF",I22*(1+$L$6/100),F22="FORN",I22*(1+$L$7/100)),2) -> 6.07 | K22: 145870 | L22: 176030
A23: 9 | B23: 2.3 | C23: 4011209 | D23: SICRO | E23: REGULARIZAÇÃO E COMPACTAÇÃO DO SUBLEITO | F23: SERV | G23: M2 | H23: 11200 | I23: =VLOOKUP(A23,'CPU-SERV'!A:K,11,0) -> 1.54 | J23: =TRUNC(_xlfn.IFS(F23="SERV",I23*(1+$L$5/100),F23="SERV DIF",I23*(1+$L$6/100),F23="FORN",I23*(1+$L$7/100)),2) -> 1.86 | K23: 17248 | L23: 20832
A24: 10 | B24: 2.4 | C24: 4011219 | D24: SICRO | E24: EXECUÇÃO E COMPACTAÇÃO DE BASE PARA PAVIMENTAÇÃO COM SOLO ESTABILIZADO GRANULOMETRICAMENTE SEM MISTURA, COM MATERIAL DE JAZIDA - EXCLUSIVE TRANSPORTE | F24: SERV | G24: M3 | H24: 1700 | I24: =VLOOKUP(A24,'CPU-SERV'!A:K,11,0) -> 14.78 | J24: =TRUNC(_xlfn.IFS(F24="SERV",I24*(1+$L$5/100),F24="SERV DIF",I24*(1+$L$6/100),F24="FORN",I24*(1+$L$7/100)),2) -> 17.86 | K24: 25126 | L24: 30362
A25: 12 | B25: 2.5 | C25: 4011352 | D25: SICRO | E25: IMPRIMAÇÃO COM EMULSÃO ASFÁLTICA (EAI) | F25: SERV | G25: M2 | H25: 11200 | I25: =VLOOKUP(A25,'CPU-SERV'!A:K,11,0) -> 0.4 | J25: =TRUNC(_xlfn.IFS(F25="SERV",I25*(1+$L$5/100),F25="SERV DIF",I25*(1+$L$6/100),F25="FORN",I25*(1+$L$7/100)),2) -> 0.48 | K25: 4480 | L25: 5376
A26: 13 | B26: 2.6 | C26: 4011353 | D26: SICRO | E26: PINTURA DE LIGAÇÃO COM EMULSÃO ASFÁLTICA RR-1C | F26: SERV | G26: M2 | H26: 10200 | I26: =VLOOKUP(A26,'CPU-SERV'!A:K,11,0) -> 0.27 | J26: =TRUNC(_xlfn.IFS(F26="SERV",I26*(1+$L$5/100),F26="SERV DIF",I26*(1+$L$6/100),F26="FORN",I26*(1+$L$7/100)),2) -> 0.32 | K26: 2754 | L26: 3264
A27: 14 | B27: 2.7 | C27: 4011463 | D27: SICRO | E27: EXECUÇÃO DE PAVIMENTO COM APLICAÇÃO DE CONCRETO ASFÁLTICO USINADO A QUENTE (CBUQ), CAMADA DE ROLAMENTO - EXCLUSIVE TRANSPORTE | F27: SERV | G27: T | H27: 853 | I27: =VLOOKUP(A27,'CPU-SERV'!A:K,11,0) -> 190.78 | J27: =TRUNC(_xlfn.IFS(F27="SERV",I27*(1+$L$5/100),F27="SERV DIF",I27*(1+$L$6/100),F27="FORN",I27*(1+$L$7/100)),2) -> 230.55 | K27: 162735.34 | L27: 196659.15
A28: C | B28: 3 | E28: TRANSPORTE DE MATERIAIS | L28: =SUM(L29:L33) -> 234060
A29: 15 | B29: 3.1 | C29: 5915321 | D29: SICRO | E29: TRANSPORTE COM CAMINHÃO BASCULANTE, EM RODOVIA PAVIMENTADA | F29: SERV | G29: TXKM | H29: 140000 | I29: =VLOOKUP(A29,'CPU-SERV'!A:K,11,0) -> 0.54 | J29: =TRUNC(_xlfn.IFS(F29="SERV",I29*(1+$L$5/100),F29="SERV DIF",I29*(1+$L$6/100),F29="FORN",I29*(1+$L$7/100)),2) -> 0.65 | K29: =TRUNC(H29*I29,2) -> 75600 | L29: =TRUNC(H29*J29,2) -> 91000
A30: 16 | B30: 3.2 | C30: 5915320 | D30: SICRO | E30: TRANSPORTE COM CAMINHÃO BASCULANTE, RODOVIA EM REVESTIMENTO PRIMÁRIO | F30: SERV | G30: TXKM | H30: 24000 | I30: =VLOOKUP(A30,'CPU-SERV'!A:K,11,0) -> 0.72 | J30: =TRUNC(_xlfn.IFS(F30="SERV",I30*(1+$L$5/100),F30="SERV DIF",I30*(1+$L$6/100),F30="FORN",I30*(1+$L$7/100)),2) -> 0.87 | K30: 17280 | L30: 20880
A31: 17 | B31: 3.3 | C31: 5914434 | D31: SICRO | E31: TRANSPORTE COM CAMINHÃO CARROCERIA 9T, EM VIA URBANA PAVIMENTADA | F31: SERV | G31: TXKM | H31: 2000 | I31: =VLOOKUP(A31,'CPU-SERV'!A:K,11,0) -> 0.74 | J31: =TRUNC(_xlfn.IFS(F31="SERV",I31*(1+$L$5/100),F31="SERV DIF",I31*(1+$L$6/100),F31="FORN",I31*(1+$L$7/100)),2) -> 0.89 | K31: 1480 | L31: 1780
A32: 18 | B32: 3.4 | C32: 5914612 | D32: SICRO | E32: TRANSPORTE DE MASSA ASFÁLTICA COM CAMINHÃO BASCULANTE, EM VIA URBANA PAVIMENTADA | F32: SERV | G32: TXKM | H32: 103000 | I32: =VLOOKUP(A32,'CPU-SERV'!A:K,11,0) -> 0.93 | J32: =TRUNC(_xlfn.IFS(F32="SERV",I32*(1+$L$5/100),F32="SERV DIF",I32*(1+$L$6/100),F32="FORN",I32*(1+$L$7/100)),2) -> 1.12 | K32: 95790 | L32: 115360
A33: 19 | B33: 3.5 | C33: 5914622 | D33: SICRO | E33: TRANSPORTE COM CAMINHÃO TANQUE DE TRANSPORTE DE MATERIAL ASFÁLTICO DE 30000 L, EM VIA URBANA PAVIMENTADA | F33: SERV | G33: TXKM | H33: 2400 | I33: =VLOOKUP(A33,'CPU-SERV'!A:K,11,0) -> 1.74 | J33: =TRUNC(_xlfn.IFS(F33="SERV",I33*(1+$L$5/100),F33="SERV DIF",I33*(1+$L$6/100),F33="FORN",I33*(1+$L$7/100)),2) -> 2.1 | K33: 4176 | L33: 5040
A34: E | B34: 4 | E34: DRENAGEM E OBRAS COMPLEMENTARES | L34: =SUM(L35:L50) -> 508023.12
A35: 20 | B35: 4.1 | C35: 94267 | D35: SINAPI | E35: GUIA (MEIO-FIO) E SARJETA CONJUGADOS DE CONCRETO, MOLDADA IN LOCO COM EXTRUSORA, 45 CM BASE (15 CM BASE DA GUIA + 30 CM BASE DA SARJETA) X 22 CM ALTURA | F35: SERV | G35: M | H35: 1680 | I35: =VLOOKUP(A35,'CPU-SERV'!A:K,11,0) -> 58.82 | J35: =TRUNC(_xlfn.IFS(F35="SERV",I35*(1+$L$5/100),F35="SERV DIF",I35*(1+$L$6/100),F35="FORN",I35*(1+$L$7/100)),2) -> 71.08 | K35: =TRUNC(H35*I35,2) -> 98817.6 | L35: =TRUNC(H35*J35,2) -> 119414.4
A36: 22 | B36: 4.2 | C36: 94263 | D36: SINAPI | E36: GUIA (MEIO-FIO) CONCRETO, MOLDADA IN LOCO EM TRECHO RETO COM EXTRUSORA, 13 CM BASE X 22 CM ALTURA | F36: SERV | G36: M | H36: 1320 | I36: =VLOOKUP(A36,'CPU-SERV'!A:K,11,0) -> 36.39 | J36: =TRUNC(_xlfn.IFS(F36="SERV",I36*(1+$L$5/100),F36="SERV DIF",I36*(1+$L$6/100),F36="FORN",I36*(1+$L$7/100)),2) -> 43.97 | K36: 48034.8 | L36: 58040.4
A37: 23 | B37: 4.3 | C37: 2003103 | D37: SICRO | E37: ENTRADA PARA DESCIDA D'ÁGUA - AREIA E BRITA COMERCIAIS | F37: SERV | G37: UNID. | H37: 12 | I37: =VLOOKUP(A37,'CPU-SERV'!A:K,11,0) -> 192.82 | J37: =TRUNC(_xlfn.IFS(F37="SERV",I37*(1+$L$5/100),F37="SERV DIF",I37*(1+$L$6/100),F37="FORN",I37*(1+$L$7/100)),2) -> 233.02 | K37: 2313.84 | L37: 2796.24
A38: 24 | B38: 4.4 | C38: 2003389 | D38: SICRO | E38: DESCIDA D'ÁGUA DE ATERRO TIPO RÁPIDO - AREIA E BRITA COMERCIAIS | F38: SERV | G38: M | H38: 110 | I38: =VLOOKUP(A38,'CPU-SERV'!A:K,11,0) -> 228.56 | J38: =TRUNC(_xlfn.IFS(F38="SERV",I38*(1+$L$5/100),F38="SERV DIF",I38*(1+$L$6/100),F38="FORN",I38*(1+$L$7/100)),2) -> 276.21 | K38: 25141.6 | L38: 30383.1
A39: 26 | B39: 4.5 | C39: 2003463 | D39: SICRO | E39: DISSIPADOR DE ENERGIA - AREIA, BRITA E PEDRA DE MÃO COMERCIAIS | F39: SERV | G39: UNID. | H39: 12 | I39: =VLOOKUP(A39,'CPU-SERV'!A:K,11,0) -> 2406.99 | J39: =TRUNC(_xlfn.IFS(F39="SERV",I39*(1+$L$5/100),F39="SERV DIF",I39*(1+$L$6/100),F39="FORN",I39*(1+$L$7/100)),2) -> 2908.84 | K39: 28883.88 | L39: 34906.08
A40: 31 | B40: 4.6 | C40: 705241 | D40: SICRO | E40: BOCA PARA BUEIRO SIMPLES CELULAR DE CONCRETO (BSCC), 2,50 X 2,50M - AREIA E BRITA COMERCIAIS | F40: SERV | G40: UNID. | H40: 2 | I40: =VLOOKUP(A40,'CPU-SERV'!A:K,11,0) -> 24252.34 | J40: =TRUNC(_xlfn.IFS(F40="SERV",I40*(1+$L$5/100),F40="SERV DIF",I40*(1+$L$6/100),F40="FORN",I40*(1+$L$7/100)),2) -> 29308.95 | K40: 48504.68 | L40: 58617.9
A41: 32 | B41: 4.7 | C41: 705197 | D41: SICRO | E41: CORPO DE BUEIRO SIMPLES CELULAR DE CONCRETO (BSCC), 2,50 X 2,50M - MOLDADO NO LOCAL, ALTURA DO ATERRO ATÉ 1,0M - AREIA E BRITA COMERCIAIS | F41: SERV | G41: M | H41: 14 | I41: =VLOOKUP(A41,'CPU-SERV'!A:K,11,0) -> 4475.91 | J41: =TRUNC(_xlfn.IFS(F41="SERV",I41*(1+$L$5/100),F41="SERV DIF",I41*(1+$L$6/100),F41="FORN",I41*(1+$L$7/100)),2) -> 5409.13 | K41: 62662.74 | L41: 75727.82
A42: 39 | B42: 4.8 | C42: 4805757 | D42: SICRO | E42: ESCAVAÇÃO MECÂNICA DE VALAS EM MATERIAL DE 1ª CATEGORIA | F42: SERV | G42: M3 | H42: 220 | I42: =VLOOKUP(A42,'CPU-SERV'!A:K,11,0) -> 6.63 | J42: =TRUNC(_xlfn.IFS(F42="SERV",I42*(1+$L$5/100),F42="SERV DIF",I42*(1+$L$6/100),F42="FORN",I42*(1+$L$7/100)),2) -> 8.01 | K42: 1458.6 | L42: 1762.2
A43: 40 | B43: 4.9 | C43: 4805756 | D43: SICRO | E43: APILOAMENTO MANUAL DE FUNDO DE VALA | F43: SERV | G43: M2 | H43: 45 | I43: =VLOOKUP(A43,'CPU-SERV'!A:K,11,0) -> 4.8 | J43: =TRUNC(_xlfn.IFS(F43="SERV",I43*(1+$L$5/100),F43="SERV DIF",I43*(1+$L$6/100),F43="FORN",I43*(1+$L$7/100)),2) -> 5.8 | K43: 216 | L43: 261
A44: 41 | B44: 4.10 | C44: 2106292 | D44: SICRO | E44: ESCORAMENTO CONTÍNUO DE VALAS COM TÁBUAS E LONGARINAS, PROFUNDIDADE ATÉ 4,0M - CONFECÇÃO, INSTALAÇÃO E RETIRADA | F44: SERV | G44: M2 | H44: 98 | I44: =VLOOKUP(A44,'CPU-SERV'!A:K,11,0) -> 153.53 | J44: =TRUNC(_xlfn.IFS(F44="SERV",I44*(1+$L$5/100),F44="SERV DIF",I44*(1+$L$6/100),F44="FORN",I44*(1+$L$7/100)),2) -> 185.54 | K44: 15045.94 | L44: 18182.92
A45: 42 | B45: 4.11 | C45: 4815671 | D45: SICRO | E45: REATERRO E COMPACTAÇÃO MANUAL DE VALAS COM SOQUETE VIBRATÓRIO | F45: SERV | G45: M3 | H45: 100 | I45: =VLOOKUP(A45,'CPU-SERV'!A:K,11,0) -> 16.68 | J45: =TRUNC(_xlfn.IFS(F45="SERV",I45*(1+$L$5/100),F45="SERV DIF",I45*(1+$L$6/100),F45="FORN",I45*(1+$L$7/100)),2) -> 20.15 | K45: 1668 | L45: 2015
A46: 43 | B46: 4.12 | C46: 94990 | D46: SINAPI | E46: EXECUÇÃO DE PASSEIO (CALÇADA) OU PISO DE CONCRETO MOLDADO IN LOCO, ACABAMENTO CONVENCIONAL, NÃO ARMADO | F46: SERV | G46: M3 | H46: 54 | I46: =VLOOKUP(A46,'CPU-SERV'!A:K,11,0) -> 720.64 | J46: =TRUNC(_xlfn.IFS(F46="SERV",I46*(1+$L$5/100),F46="SERV DIF",I46*(1+$L$6/100),F46="FORN",I46*(1+$L$7/100)),2) -> 870.89 | K46: 38914.56 | L46: 47028.06
A47: 46 | B47: 4.13 | C47: 5213440 | D47: SICRO | E47: PLACA DE REGULAMENTAÇÃO EM AÇO, D=60CM - PELÍCULA RETRORREFLETIVA - FORNECIMENTO E INSTALAÇÃO, INCLUSIVE SUPORTE | F47: SERV | G47: UN. | H47: 18 | I47: =VLOOKUP(A47,'CPU-SERV'!A:K,11,0) -> 259.46 | J47: =TRUNC(_xlfn.IFS(F47="SERV",I47*(1+$L$5/100),F47="SERV DIF",I47*(1+$L$6/100),F47="FORN",I47*(1+$L$7/100)),2) -> 313.55 | K47: 4670.28 | L47: 5643.9
A48: 49 | B48: 4.14 | C48: 5213401 | D48: SICRO | E48: PINTURA DE EIXO VIÁRIO SOBRE ASFALTO COM TINTA RETRORREFLETIVA A BASE DE RESINA ACRÍLICA COM MICROESFERAS DE VIDRO, APLICAÇÃO MECÂNICA COM DEMARCADORA AUTOPROPELIDA | F48: SERV | G48: M2 | H48: 510 | I48: =VLOOKUP(A48,'CPU-SERV'!A:K,11,0) -> 29.17 | J48: =TRUNC(_xlfn.IFS(F48="SERV",I48*(1+$L$5/100),F48="SERV DIF",I48*(1+$L$6/100),F48="FORN",I48*(1+$L$7/100)),2) -> 35.25 | K48: 14876.7 | L48: 17977.5
A49: 50 | B49: 4.15 | C49: 5213360 | D49: SICRO | E49: TACHA REFLETIVA EM PLÁSTICO INJETADO - BIDIRECIONAL COM UM PINO - FORNECIMENTO E COLOCAÇÃO | F49: SERV | G49: UNID. | H49: 750 | I49: =VLOOKUP(A49,'CPU-SERV'!A:K,11,0) -> 31.08 | J49: =TRUNC(_xlfn.IFS(F49="SERV",I49*(1+$L$5/100),F49="SERV DIF",I49*(1+$L$6/100),F49="FORN",I49*(1+$L$7/100)),2) -> 37.56 | K49: 23310 | L49: 28170
A50: 51 | B50: 4.16 | C50: 5213405 | D50: SICRO | E50: PINTURA DE FAIXA DE PEDESTRE OU ZEBRADA TINTA RETRORREFLETIVA A BASE DE RESINA ACRÍLICA COM MICROESFERAS DE VIDRO, APLICAÇÃO MANUAL | F50: SERV | G50: M2 | H50: 140 | I50: =VLOOKUP(A50,'CPU-SERV'!A:K,11,0) -> 41.95 | J50: =TRUNC(_xlfn.IFS(F50="SERV",I50*(1+$L$5/100),F50="SERV DIF",I50*(1+$L$6/100),F50="FORN",I50*(1+$L$7/100)),2) -> 50.69 | K50: 5873 | L50: 7096.6
A51: F | B51: 5 | E51: FORNECIMENTOS - MATERIAL ASFÁLTICO (BDI DIFERENCIADO) | L51: =SUM(L52:L57) -> 373505.9
A52: F1 | B52: 5.1 | C52: CPU.7 | D52: CODEVASF | E52: AQUISIÇÃO DE EMULSÃO ASFÁLTICA PARA IMPRIMAÇÃO (EAI) - EXCLUSIVE TRANSPORTE | F52: FORN | G52: T | H52: 14 | I52: =VLOOKUP(A52,'CPU-FORNEC'!A:J,9,0) -> 3532.13 | J52: =TRUNC(_xlfn.IFS(F52="SERV",I52*(1+$L$5/100),F52="SERV DIF",I52*(1+$L$6/100),F52="FORN",I52*(1+$L$7/100)),2) -> 4061.94 | K52: =TRUNC(H52*I52,2) -> 49449.82 | L52: =TRUNC(H52*J52,2) -> 56867.16
A53: F2 | B53: 5.2 | C53: CPU.8 | D53: CODEVASF | E53: TRANSPORTE DE EMULSÃO ASFÁLTICA PARA IMPRIMAÇÃO (EAI) | F53: SERV DIF | G53: T | H53: 14 | I53: =VLOOKUP(A53,'CPU-FORNEC'!A:J,9,0) -> 407.31 | J53: =TRUNC(_xlfn.IFS(F53="SERV",I53*(1+$L$5/100),F53="SERV DIF",I53*(1+$L$6/100),F53="FORN",I53*(1+$L$7/100)),2) -> 468.4 | K53: 5702.34 | L53: 6557.6
A54: F3 | B54: 5.3 | C54: CPU.9 | D54: CODEVASF | E54: AQUISIÇÃO DE EMULSAO ASFALTICA CATIONICA RR-1C - EXCLUSIVE TRANSPORTE | F54: FORN | G54: T | H54: 5 | I54: =VLOOKUP(A54,'CPU-FORNEC'!A:J,9,0) -> 3480.79 | J54: =TRUNC(_xlfn.IFS(F54="SERV",I54*(1+$L$5/100),F54="SERV DIF",I54*(1+$L$6/100),F54="FORN",I54*(1+$L$7/100)),2) -> 4002.9 | K54: 17403.95 | L54: 20014.5
A55: F4 | B55: 5.4 | C55: CPU.10 | D55: CODEVASF | E55: TRANSPORTE DE EMULSÃO ASFÁLTICA CATIONICA RR-1C | F55: SERV DIF | G55: T | H55: 5 | I55: =VLOOKUP(A55,'CPU-FORNEC'!A:J,9,0) -> 496.49 | J55: =TRUNC(_xlfn.IFS(F55="SERV",I55*(1+$L$5/100),F55="SERV DIF",I55*(1+$L$6/100),F55="FORN",I55*(1+$L$7/100)),2) -> 570.96 | K55: 2482.45 | L55: 2854.8
A56: F5 | B56: 5.5 | C56: CPU.11 | D56: CODEVASF | E56: AQUISIÇÃO DE CONCRETO ASFÁLTICO DE PETRÓLEO - CAP 50/70 - EXCLUSIVE TRANSPORTE | F56: FORN | G56: T | H56: 48 | I56: =VLOOKUP(A56,'CPU-FORNEC'!A:J,9,0) -> 4815.2 | J56: =TRUNC(_xlfn.IFS(F56="SERV",I56*(1+$L$5/100),F56="SERV DIF",I56*(1+$L$6/100),F56="FORN",I56*(1+$L$7/100)),2) -> 5537.48 | K56: 231129.6 | L56: 265799.04
A57: F6 | B57: 5.6 | C57: CPU.12 | D57: CODEVASF | E57: TRANSPORTE DE CONCRETO ASFÁLTICO DE PETRÓLEO - CAP 50/70 | F57: SERV DIF | G57: T | H57: 48 | I57: =VLOOKUP(A57,'CPU-FORNEC'!A:J,9,0) -> 387.92 | J57: =TRUNC(_xlfn.IFS(F57="SERV",I57*(1+$L$5/100),F57="SERV DIF",I57*(1+$L$6/100),F57="FORN",I57*(1+$L$7/100)),2) -> 446.1 | K57: 18620.16 | L57: 21412.8
B58: TOTAL GERAL DA OBRA COM BDI | L58: =SUM(L10,L20,L28,L34,L51) -> 1999927.25

Sheet CPU-SERV
A1: 1 | B1: 1ª/GRD | K1: =J37 -> 15342.3
B2: OBRA: | C2: DRENAGEM E PAVIMENTAÇÃO ASFÁLTICA EM CBUQ - AV. JOANA GOMES DOS SANTOS E ROTATÓRIA (SÃO JOÃO DO PACUÍ / MG)
B3: Custo Unitário de Referência | E3: Minas Gerais
E4: Janeiro/2025 | H4: Produção da equipe | I4: 0.5 | J4: =VLOOKUP(A1,ORÇAMENTO!$A$10:$L$58,7,1) -> GL
B5: CPU.1 | C5: MOBILIZAÇÃO E DESMOBILIZAÇÃO | I5: Valores em reais (R$)
B6: A - EQUIPAMENTOS | D6: Quantidade | E6: Utilização | G6: Custo Horário | J6: Custo
E7: Operativa | F7: Improdutiva | G7: Produtivo | H7: Improdutivo | J7: Horário Total
B8: E9687 | C8: Caminhão carroceria com capacidade de 5 t - 115 kW | D8: 8 | E8: 0.6 | F8: 0.4 | G8: 146.8808 | H8: 57.4231 | J8: =D8*(E8*G8+F8*H8) -> 888.78176
B9: E9575 | C9: Caminhão basculante com caçamba estanque com capacidade de 14 m³ - 210 kW | D9: 16 | E9: 1 | F9: 0 | G9: 309.8394 | H9: 90.4122 | J9: =D9*(E9*G9+F9*H9) -> 4957.4304
H10: Custo horário total de equipamentos | J10: =SUM(J8:J9) -> 5846.21216
B11: B - MÃO DE OBRA | D11: Quantidade | E11: Unidade | G11: Custo Horário | H11: Custo Horário Total
B12: P9824 | C12: Servente | D12: 8 | E12: h | G12: 21.3355 | J12: =D12*G12 -> 170.684
J13: =D13*G13 -> 0
D14: Custo horário total de mão de obra | J14: =SUM(J12:J13) -> 170.684
D15: Custo horário total de execução | J15: =J10+J14 -> 6016.89616
D16: Custo unitário de execução | J16: =J15/I4 -> 12033.79232
H17: Custo do FIC | J17: 0
H18: Custo do FIT | J18: 0
B19: C - MATERIAL | D19: Quantidade | E19: Unidade | G19: Preço Unitário | H19: Custo Unitário
B20: - | C20: 0 | E20: 0 | G20: 0 | J20: =D20*G20 -> 0
B21: - | C21: 0 | E21: 0 | G21: 0 | J21: =D21*G21 -> 0
D22: Custo unitário total de material | J22: =SUM(J20:J21) -> 0
B23: D - ATIVIDADES AUXILIARES | D23: Quantidade | E23: Unidade | G23: Custo Unitário | H23: Custo Unitário
B24: 5914640 | C24: Transporte com cavalo mecânico com semirreboque com capacidade de 30 t - rodovia pavimentada | D24: 5804.4 | E24: tkm | G24: 0.57 | J24: =D24*G24 -> 3308.508
B25: - | C25: 0 | D25: 0 | E25: 0 | G25: 0 | J25: =D25*G25 -> 0
D26: Custo total de atividades auxiliares | J26: =SUM(J24:J25) -> 3308.508
H27: Subtotal | J27: =J16+J22+J26+J17+J18 -> 15342.30032
B28: E - TEMPO FIXO | D28: Código | E28: Quantidade | F28: Unidade | H28: Custo Unitário | I28: Custo Unitário
B29: - | C29: 0 | D29: - | F29: 0 | H29: 0 | J29: =ROUNDDOWN(E29*H29,4) -> 0
B30: - | C30: 0 | D30: - | F30: 0 | H30: 0 | J30: =ROUNDDOWN(E30*H30,4) -> 0
D31: Custo unitário total de tempo fixo | J31: =SUM(J29:J30) -> 0
B32: F - MOMENTO DE TRANSPORTE | D32: Quantidade | E32: Unidade | F32: DMT | J32: Custo Unitário
F33: LN | G33: RP | H33: P
B34: - | C34: 0 | E34: tkm
B35: - | C35: 0 | E35: tkm
D36: Custo unitário total de transporte
F37: Custo unitário direto total | J37: =TRUNC(J27+J31,2) -> 15342.3
B38: Obs.
A40: =A1+1 -> 2 | B40: 1ª/GRD | K40: =J81 -> 115361.96
B41: OBRA: | C41: DRENAGEM E PAVIMENTAÇÃO ASFÁLTICA EM CBUQ - AV. JOANA GOMES DOS SANTOS E ROTATÓRIA (SÃO JOÃO DO PACUÍ / MG)
B42: Custo Unitário de Referência | E42: Minas Gerais
E43: Janeiro/2025 | H43: Produção da equipe | I43: 0.2 | J43: =VLOOKUP(A40,ORÇAMENTO!$A$10:$L$58,7,1) -> GL
B44: CPU.2 | C44: ADMINISTRAÇÃO LOCAL | I44: Valores em reais (R$)
B45: A - EQUIPAMENTOS | D45: Quantidade | E45: Utilização | G45: Custo Horário | J45: Custo
E46: Operativa | F46: Improdutiva | G46: Produtivo | H46: Improdutivo | J46: Horário Total
B47: - | C47: 0 | G47: 0 | H47: 0 | J47: =D47*(E47*G47+F47*H47) -> 0
B48: - | C48: 0 | G48: 0 | H48: 0 | J48: =D48*(E48*G48+F48*H48) -> 0
H49: Custo horário total de equipamentos | J49: =SUM(J47:J48) -> 0
B50: B - MÃO DE OBRA | D50: Quantidade | E50: Unidade | G50: Custo Horário | H50: Custo Horário Total
B51: P9812 | C51: Engenheiro | D51: 0.2019504589 | E51: mês | G51: 26055.5515 | J51: =D51*G51 -> 5261.930582
B52: P9840 | C52: Encarregado geral | D52: 1 | E52: mês | G52: 10654.6548 | J52: =D52*G52 -> 10654.6548
B53: P9876 | C53: Técnico de segurança do trabalho | D53: 0.5 | E53: mês | G53: 6276.43168 | J53: 3138.21584
B54: P9858 | C54: Laboratorista | D54: 0.5 | E54: mês | G54: 5101.81656 | J54: 2550.90828
B55: P9806 | C55: Auxiliar administrativo | D55: 0.25 | E55: mês | G55: 3577.64248 | J55: 894.41062
D56: Custo horário total de mão de obra | J56: =SUM(J51:J55) -> 22500.12012
D57: Custo horário total de execução | J57: =J49+J56 -> 22500.12012
D58: Custo unitário de execução | J58: =J57/I43 -> 112500.6006
H59: Custo do FIC | J59: -
H60: Custo do FIT | J60: -
B61: C - MATERIAL | D61: Quantidade | E61: Unidade | G61: Preço Unitário | H61: Custo Unitário
B62: - | C62: 0 | D62: 0 | E62: 0 | G62: 0 | J62: =D62*G62 -> 0
B63: - | C63: 0 | D63: 0 | E63: 0 | G63: 0 | J63: 0
D64: Custo unitário total de material | J64: =SUM(J62:J63) -> 0
B65: D - ATIVIDADES AUXILIARES | D65: Quantidade | E65: Unidade | G65: Custo Unitário | H65: Custo Unitário
B66: 14250 | C66: Energia Elétrica | D66: 360 | E66: kwh | G66: 0.95 | J66: =D66*G66 -> 342
B67: 44480 | C67: Tarifa A - Água e Esgoto | D67: 24 | E67: m³ | G67: 17.97 | J67: =D67*G67 -> 431.28
B68: 5212560 | C68: Placa de advertência para sinalização de obras montada em suporte metálico móvel, lado 1,00 m - utilização de 600 ciclos - fornecimento, 01 implantação e 01 retirada diária | D68: 352 | E68: un.dia | G68: 3.89 | J68: =D68*G68 -> 1369.28
B69: Cotação | C69: Telefone | D69: 12 | E69: mês | G69: 59.9 | J69: =D69*G69 -> 718.8
D70: Custo total de atividades auxiliares | J70: =SUM(J66:J69) -> 2861.36
H71: Subtotal | J71: =J58+J64+J70 -> 115361.9606
B72: E - TEMPO FIXO | D72: Código | E72: Quantidade | F72: Unidade | H72: Custo Unitário | I72: Custo Unitário
B73: - | C73: 0 | D73: - | E73: 0 | F73: t | H73: 0 | J73: =ROUNDDOWN(E73*H73,4) -> 0
B74: - | C74: 0 | D74: - | E74: 0 | F74: t | H74: 0 | J74: =ROUNDDOWN(E74*H74,4) -> 0
D75: Custo unitário total de tempo fixo | J75: =SUM(J73:J74) -> 0
B76: F - MOMENTO DE TRANSPORTE | D76: Quantidade | E76: Unidade | F76: DMT | J76: Custo Unitário
F77: LN | G77: RP | H77: P
B78: - | C78: 0 | E78: tkm
B79: - | C79: 0 | E79: tkm
D80: Custo unitário total de transporte
F81: Custo unitário direto total | J81: =TRUNC(J71+J75,2) -> 115361.96
B82: Obs.
A84: =A40+1 -> 3 | B84: 1ª/GRD | K84: =J120 -> 13857.3
B85: OBRA: | C85: DRENAGEM E PAVIMENTAÇÃO ASFÁLTICA EM CBUQ - AV. JOANA GOMES DOS SANTOS E ROTATÓRIA (SÃO JOÃO DO PACUÍ / MG)
B86: Custo Unitário de Referência | E86: Minas Gerais
E87: Janeiro/2025 | H87: Produção da equipe | I87: 1 | J87: =VLOOKUP(A84,ORÇAMENTO!$A$10:$L$58,7,1) -> GL
B88: CPU.3 | C88: CANTEIRO DE OBRAS | I88: Valores em reais (R$)
B89: A - EQUIPAMENTOS | D89: Quantidade | E89: Utilização | G89: Custo Horário | J89: Custo
E90: Operativa | F90: Improdutiva | G90: Produtivo | H90: Improdutivo | J90: Horário Total
B91: - | C91: 0 | G91: 0 | H91: 0 | J91: =D91*(E91*G91+F91*H91) -> 0
B92: - | C92: 0 | G92: 0 | H92: 0 | J92: =D92*(E92*G92+F92*H92) -> 0
H93: Custo horário total de equipamentos | J93: =SUM(J91:J92) -> 0
B94: B - MÃO DE OBRA | D94: Quantidade | E94: Unidade | G94: Custo Horário | H94: Custo Horário Total
B95: P9824 | C95: Servente | D95: 8 | E95: h | G95: 21.3355 | J95: =D95*G95 -> 170.684
B96: P9808 | C96: Carpinteiro | D96: 8 | E96: h | G96: 26.4529 | J96: =D96*G96 -> 211.6232
D97: Custo horário total de mão de obra | J97: =SUM(J95:J96) -> 382.3072
D98: Custo horário total de execução | J98: =J93+J97 -> 382.3072
D99: Custo unitário de execução | J99: =J98/I87 -> 382.3072
H100: Custo do FIC | J100: -
H101: Custo do FIT | J101: -
B102: C - MATERIAL | D102: Quantidade | E102: Unidade | G102: Preço Unitário | H102: Custo Unitário
B103: M0053 | C103: Tela plástica em polipropileno na cor laranja para tapume - L = 1,2 m | D103: 100 | E103: m | G103: 1.775 | J103: =D103*G103 -> 177.5
B104: - | C104: 0 | D104: 0 | E104: 0 | G104: 0 | J104: =D104*G104 -> 0
D105: Custo unitário total de material | J105: =SUM(J103:J104) -> 177.5
B106: D - ATIVIDADES AUXILIARES | D106: Quantidade | E106: Unidade | G106: Custo Unitário | H106: Custo Unitário
B107: 10775 | C107: Locação de container 2,30 X 6,00 m, alt. 2,50 m, com 1 sanitário, para escritório, completo, sem divisórias internas | D107: 6 | E107: mês | G107: 985 | J107: =D107*G107 -> 5910
B108: 10779 | C108: Locação de container 2,30 X 4,30 m, alt. 2,50 M, p/ sanitário, c/ 5 bacias, 1 lavatório e 4 mictórios | D108: 6 | E108: mês | G108: 1231.25 | J108: =D108*G108 -> 7387.5
D109: Custo total de atividades auxiliares | J109: =SUM(J107:J108) -> 13297.5
H110: Subtotal | J110: =J99+J105+J109 -> 13857.3072
B111: E - TEMPO FIXO | D111: Código | E111: Quantidade | F111: Unidade | H111: Custo Unitário | I111: Custo Unitário
B112: - | C112: 0 | D112: - | E112: 0 | F112: t | H112: 0 | J112: =ROUNDDOWN(E112*H112,4) -> 0
B113: - | C113: 0 | D113: - | E113: 0 | F113: t | H113: 0 | J113: =ROUNDDOWN(E113*H113,4) -> 0
D114: Custo unitário total de tempo fixo | J114: =SUM(J112:J113) -> 0
B115: F - MOMENTO DE TRANSPORTE | D115: Quantidade | E115: Unidade | F115: DMT | J115: Custo Unitário
F116: LN | G116: RP | H116: P
B117: - | C117: 0 | D117: 0 | E117: tkm
B118: - | C118: 0 | D118: 0 | E118: tkm
D119: Custo unitário total de transporte
F120: Custo unitário direto total | J120: =TRUNC(J110+J114,2) -> 13857.3
B121: Obs.
A123: =A84+1 -> 4 | B123: 1ª/GRD | K123: =J161 -> 351.42
B124: OBRA: | C124: DRENAGEM E PAVIMENTAÇÃO ASFÁLTICA EM CBUQ - AV. JOANA GOMES DOS SANTOS E ROTATÓRIA (SÃO JOÃO DO PACUÍ / MG)
B125: Custo Unitário de Referência | E125: Minas Gerais
E126: Janeiro/2025 | H126: Produção da equipe | I126: 1 | J126: =VLOOKUP(A123,ORÇAMENTO!$A$10:$L$58,7,1) -> M2
B127: 103689 | C127: PLACA DE OBRA EM CHAPA DE AÇO GALVANIZADO | I127: Valores em reais (R$)
B128: A - EQUIPAMENTOS | D128: Quantidade | E128: Utilização | G128: Custo Horário | J128: Custo
E129: Operativa | F129: Improdutiva | G129: Produtivo | H129: Improdutivo | J129: Horário Total
B130: - | C130: 0 | G130: 0 | H130: 0 | J130: =D130*(E130*G130+F130*H130) -> 0
B131: - | C131: 0 | G131: 0 | H131: 0 | J131: =D131*(E131*G131+F131*H131) -> 0
H132: Custo horário total de equipamentos | J132: =SUM(J130:J131) -> 0
B133: B - MÃO DE OBRA | D133: Quantidade | E133: Unidade | G133: Custo Horário | H133: Custo Horário Total
B134: P9824 | C134: Servente | D134: 1.1186 | E134: h | G134: 21.3355 | J134: =D134*G134 -> 23.8658903
B135: P9808 | C135: Carpinteiro | D135: 0.3729 | E135: h | G135: 26.4529 | J135: =D135*G135 -> 9.86428641
D136: Custo horário total de mão de obra | J136: =SUM(J134:J135) -> 33.73017671
D137: Custo horário total de execução | J137: =J132+J136 -> 33.73017671
D138: Custo unitário de execução | J138: =J137/I126 -> 33.73017671
H139: Custo do FIC | J139: -
H140: Custo do FIT | J140: -
B141: C - MATERIAL | D141: Quantidade | E141: Unidade | G141: Preço Unitário | H141: Custo Unitário
B142: M1358 | C142: Sarrafo em madeira de terceira - E = 2,5 cm e L = 5 cm | D142: 6.4166 | E142: m | G142: 1.9666 | J142: =D142*G142 -> 12.61888556
B143: M1205 | C143: Prego de ferro | D143: 0.0245 | E143: kg | G143: 16.5445 | J143: =D143*G143 -> 0.40534025
B144: M0998 | C144: Madeira estrutural de eucalipto | D144: 0.022608 | E144: m³ | G144: 2418.0391 | J144: =D144*G144 -> 54.66702797
B145: 4813 | C145: Placa de obra (para construção civil) em chapa galvanizada *N. 22*, adesivada, de *2,4 X 1,2* m (sem postes para fixação) | D145: 1 | E145: m² | G145: 250 | J145: 250
D146: Custo unitário total de material | J146: =SUM(J142:J145) -> 317.6912538
B147: D - ATIVIDADES AUXILIARES | D147: Quantidade | E147: Unidade | G147: Custo Unitário | H147: Custo Unitário
B148: - | C148: 0 | D148: 0 | E148: 0 | G148: 0 | J148: =D148*G148 -> 0
B149: - | C149: 0 | D149: 0 | E149: 0 | G149: 0 | J149: =D149*G149 -> 0
D150: Custo total de atividades auxiliares | J150: =SUM(J148:J149) -> 0
H151: Subtotal | J151: =J138+J146+J150 -> 351.4214305
B152: E - TEMPO FIXO | D152: Código | E152: Quantidade | F152: Unidade | H152: Custo Unitário | I152: Custo Unitário
B153: - | C153: 0 | D153: - | E153: 0 | F153: t | H153: 0 | J153: =ROUNDDOWN(E153*H153,4) -> 0
B154: - | C154: 0 | D154: - | E154: 0 | F154: t | H154: 0 | J154: =ROUNDDOWN(E154*H154,4) -> 0
D155: Custo unitário total de tempo fixo | J155: =SUM(J153:J154) -> 0
B156: F - MOMENTO DE TRANSPORTE | D156: Quantidade | E156: Unidade | F156: DMT | J156: Custo Unitário
F157: LN | G157: RP | H157: P
B158: - | C158: 0 | D158: 0 | E158: tkm
B159: - | C159: 0 | D159: 0 | E159: tkm
D160: Custo unitário total de transporte
F161: Custo unitário direto total | J161: =TRUNC(J151+J155,2) -> 351.42
B162: Obs.
A164: 6 | B164: 1ª/GRD | K164: =J202 -> 0.46
B165: OBRA: | C165: DRENAGEM E PAVIMENTAÇÃO ASFÁLTICA EM CBUQ - AV. JOANA GOMES DOS SANTOS E ROTATÓRIA (SÃO JOÃO DO PACUÍ / MG)
B166: Custo Unitário de Referência | E166: Minas Gerais
E167: Janeiro/2025 | H167: Produção da equipe | I167: 1 | J167: =VLOOKUP(A164,ORÇAMENTO!$A$10:$L$58,7,1) -> M2
B168: 78472 | C168: SERVIÇOS TOPOGRÁFICOS PARA PAVIMENTAÇÃO, INCLUSIVE LEVANTAMENTO PLANIALTIMÉTRICO CADASTRAL, GERAÇÃO DE NOTAS DE SERVIÇO, SEÇÕES TRANSVERSAIS E GREIDE, ESTAQUEAMENTO E ACOMPANHAMENTO EXECUTIVO | I168: Valores em reais (R$)
B169: A - EQUIPAMENTOS | D169: Quantidade | E169: Utilização | G169: Custo Horário | J169: Custo
E170: Operativa | F170: Improdutiva | G170: Produtivo | H170: Improdutivo | J170: Horário Total
B171: 92145 | C171: Caminhonete cabine simples com motor 1.6 flex, câmbio manual, potência 101/104 cv, 2 portas | D171: 0.0005 | E171: 1 | F171: 0 | G171: 76.5 | H171: 0 | J171: =D171*(E171*G171+F171*H171) -> 0.03825
B172: - | C172: 0 | D172: 0 | E172: 1 | F172: 0 | G172: 0 | H172: 0 | J172: =D172*(E172*G172+F172*H172) -> 0
H173: Custo horário total de equipamentos | J173: =SUM(J171:J172) -> 0.03825
B174: B - MÃO DE OBRA | D174: Quantidade | E174: Unidade | G174: Custo Horário | H174: Custo Horário Total
B175: P9949 | C175: Topógrafo | D175: 1.25e-05 | E175: mês | G175: 6816.9716 | H175: 28.40404833 | J175: =D175*G175 -> 0.085212145
B176: P9950 | C176: Auxiliar de topografia | D176: 1.25e-05 | E176: mês | G176: 6157.8463 | H176: 22.80683815 | J176: =D176*G176 -> 0.07697307875
B177: P9824 | C177: Servente | D177: 0.0075 | E177: h | G177: 21.3355 | H177: 0.08889791667 | J177: =D177*G177 -> 0.16001625
B178: P9848 | C178: Desenhista | D178: 1e-05 | E178: mês | G178: 10307.7486 | H178: 38.17684667 | J178: =D178*G178 -> 0.103077486
D179: Custo horário total de mão de obra | J179: =SUM(J175:J178) -> 0.4252789597
D180: Custo horário total de execução | J180: =J173+J179 -> 0.4635289597
D181: Custo unitário de execução | J181: =J180/I167 -> 0.4635289597
H182: Custo do FIC | J182: -
H183: Custo do FIT | J183: -
B184: C - MATERIAL | D184: Quantidade | E184: Unidade | G184: Preço Unitário | H184: Custo Unitário
B185: - | C185: 0 | D185: 0 | E185: 0 | G185: 0 | J185: =D185*G185 -> 0
B186: - | C186: 0 | D186: 0 | E186: 0 | G186: 0 | J186: 0
D187: Custo unitário total de material | J187: =SUM(J185:J186) -> 0
B188: D - ATIVIDADES AUXILIARES | D188: Quantidade | E188: Unidade | G188: Custo Unitário | H188: Custo Unitário
B189: - | C189: 0 | D189: 0 | E189: 0 | G189: 0 | J189: =D189*G189 -> 0
B190: - | C190: 0 | D190: 0 | E190: 0 | G190: 0 | J190: =D190*G190 -> 0
D191: Custo total de atividades auxiliares | J191: =SUM(J189:J190) -> 0
H192: Subtotal | J192: =J181+J187+J191 -> 0.4635289597
B193: E - TEMPO FIXO | D193: Código | E193: Quantidade | F193: Unidade | H193: Custo Unitário | I193: Custo Unitário
B194: - | C194: 0 | D194: - | E194: 0 | F194: t | H194: 0 | J194: =ROUNDDOWN(E194*H194,4) -> 0
B195: - | C195: 0 | D195: - | E195: 0 | F195: t | H195: 0 | J195: =ROUNDDOWN(E195*H195,4) -> 0
D196: Custo unitário total de tempo fixo | J196: =SUM(J194:J195) -> 0
B197: F - MOMENTO DE TRANSPORTE | D197: Quantidade | E197: Unidade | F197: DMT | J197: Custo Unitário
F198: LN | G198: RP | H198: P
B199: - | C199: 0 | D199: 0 | E199: tkm
B200: - | C200: 0 | D200: 0 | E200: tkm
D201: Custo unitário total de transporte
F202: Custo unitário direto total | J202: =TRUNC(J192+J196,2) -> 0.46
B203: Obs.
A205: 6.1 | B205: 1ª/GRD | K205: =J241 -> 0.53
... 1321 more rows

Sheet CPU-FORNEC
A1: 1 | B1: CODEVASF | E1: COMPOSIÇÃO DE PREÇO UNITÁRIO | I1: =H24 -> 0 | J1: =H26 -> 0 | K1: BDI CALCULADO: | M1: =ORÇAMENTO!L6 -> 15
B2: OBRA: | C2: DRENAGEM E PAVIMENTAÇÃO ASFÁLTICA EM CBUQ - AV. JOANA GOMES DOS SANTOS E ROTATÓRIA (SÃO JOÃO DO PACUÍ / MG) | G2: DATA: | H2: =ORÇAMENTO!C6 -> ABRIL / 2025 | K2: BDI DIFERENCIADO: | M2: ='BDI FORN'!D31/100 -> 0.15
B3: SERVIÇO: | C3: CPU.1 | E3: Referência: | F3: CODEVASF | G3: UNIDADE: | H3: =VLOOKUP(A1,ORÇAMENTO!A11:L35,5) -> MOBILIZAÇÃO E DESMOBILIZAÇÃO
B5: TIPO ITEM | C5: CODIGO ITEM | D5: DESCRIÇÃO ITEM | E5: UNIDADE ITEM | F5: COEFICIENTE | G5: PRECO UNITARIO | H5: CUSTO TOTAL | J5: distancia = | K5: 90 | L5: B.DESPACHO
B6: EQUIPAMENTOS | J6: Pá carregadeira | M6: 10.1 | N6: ton
C7: E9001 | D7: E9001 | E7: E9001 | G7: E9001
B10: MÃO DE OBRA
B14: MATERIAIS
H17: =ROUNDDOWN(F17*G17,2) -> 0 | J17: Motoniveladora | M17: 12.47 | N17: ton
B18: ATIVIDADES AUXILIARES | J18: Trator de pneus | M18: 2.8 | N18: ton
H19: =ROUNDDOWN(F19*G19,2) -> 0
H20: 0
H21: 0
H22: =ROUNDDOWN(F22*G22,2) -> 0 | J22: Rolo Compactador | M22: 15.33 | N22: ton
B23: PRODUÇÃO DA EQUIPE | E23: 1 | F23: CUSTO | H23: =SUM(H6:H22) -> 0 | J23: Grade de disco | M23: 1 | N23: ton
B24: TOTAL | H24: =H23/E23 -> 0 | I24: OK | J24: RETROESCAVADEIRA | M24: 6.67 | N24: ton
B25: BDI % | H25: =1+$M$1 -> 16
B26: TOTAL DO SERVIÇO - R$ | H26: =ROUND(H24*H25,2) -> 0
A28: F1 | B28: CODEVASF | E28: COMPOSIÇÃO DE PREÇO UNITÁRIO | I28: =H35 -> 3532.13 | J28: =H37 -> 4061.95
B29: OBRA: | C29: DRENAGEM E PAVIMENTAÇÃO ASFÁLTICA EM CBUQ - AV. JOANA GOMES DOS SANTOS E ROTATÓRIA (SÃO JOÃO DO PACUÍ / MG) | G29: DATA: | H29: =$H$2 -> ABRIL / 2025
B30: SERVIÇO: | C30: AQUISIÇÃO DE EMULSÃO ASFÁLTICA PARA IMPRIMAÇÃO (EAI) - EXCLUSIVE TRANSPORTE | E30: Referência: | F30: CODEVASF | G30: UNIDADE: | H30: =VLOOKUP(A28,ORÇAMENTO!$A$11:$L$65,7) -> T
B32: TIPO ITEM | C32: CODIGO ITEM | D32: DESCRIÇÃO ITEM | E32: UNIDADE ITEM | F32: COEFICIENTE | G32: PRECO UNITARIO | H32: CUSTO TOTAL
B33: INSUMO | C33: ANP | D33: EMULSÃO ASFÁLTICA PARA SERVIÇO DE IMPRIMAÇÃO (MEMÓRIA EM ANEXO) | E33: T | F33: 1 | G33: 3532.13706 | H33: =ROUNDDOWN(F33*G33,2) -> 3532.13
B34: PRODUÇÃO DA EQUIPE | E34: 1 | F34: CUSTO | H34: =SUM(H33:H33) -> 3532.13
B35: TOTAL | H35: =H34/E34 -> 3532.13
B36: BDI % | H36: =1+$M$2 -> 1.15
B37: TOTAL DO SERVIÇO - R$ | H37: =ROUND(H35*H36,2) -> 4061.95 | I37: OK
A39: F2 | B39: CODEVASF | E39: COMPOSIÇÃO DE PREÇO UNITÁRIO | I39: =H46 -> 407.31 | J39: =H48 -> 468.41
B40: OBRA: | C40: DRENAGEM E PAVIMENTAÇÃO ASFÁLTICA EM CBUQ - AV. JOANA GOMES DOS SANTOS E ROTATÓRIA (SÃO JOÃO DO PACUÍ / MG) | G40: DATA: | H40: =$H$2 -> ABRIL / 2025
B41: SERVIÇO: | C41: TRANSPORTE DE EMULSÃO ASFÁLTICA PARA IMPRIMAÇÃO (EAI) | E41: Referência: | F41: CODEVASF | G41: UNIDADE: | H41: =VLOOKUP(A39,ORÇAMENTO!$A$11:$L$65,7) -> T
B43: TIPO ITEM | C43: CODIGO ITEM | D43: DESCRIÇÃO ITEM | E43: UNIDADE ITEM | F43: COEFICIENTE | G43: PRECO UNITARIO | H43: CUSTO TOTAL
B44: INSUMO | C44: - | D44: TRANSPORTE DE EMULSÃO ASFÁLTICA PARA IMPRIMAÇÃO (EAI), INCLUINDO CUSTO TOTAL DO TRANSPORTE (COMBUSTÍVEL, PEDÁGIOS, ETC.) E ICMS - MEMÓRIA ANEXA | E44: T | F44: 1 | G44: 407.3128571 | H44: =ROUNDDOWN(F44*G44,2) -> 407.31
B45: PRODUÇÃO DA EQUIPE | E45: 1 | F45: CUSTO | H45: =SUM(H44:H44) -> 407.31
B46: TOTAL | H46: =H45/E45 -> 407.31
B47: BDI % | H47: =1+$M$2 -> 1.15
B48: TOTAL DO SERVIÇO - R$ | H48: =ROUND(H46*H47,2) -> 468.41 | I48: OK
A50: F3 | B50: CODEVASF | E50: COMPOSIÇÃO DE PREÇO UNITÁRIO | I50: =H57 -> 3480.79 | J50: =H59 -> 4002.91
B51: OBRA: | C51: DRENAGEM E PAVIMENTAÇÃO ASFÁLTICA EM CBUQ - AV. JOANA GOMES DOS SANTOS E ROTATÓRIA (SÃO JOÃO DO PACUÍ / MG) | G51: DATA: | H51: =$H$2 -> ABRIL / 2025
B52: SERVIÇO: | C52: AQUISIÇÃO DE EMULSAO ASFALTICA CATIONICA RR-1C - EXCLUSIVE TRANSPORTE | E52: Referência: | F52: CODEVASF | G52: UNIDADE: | H52: =VLOOKUP(A50,ORÇAMENTO!$A$11:$L$65,7) -> T
B54: TIPO ITEM | C54: CODIGO ITEM | D54: DESCRIÇÃO ITEM | E54: UNIDADE ITEM | F54: COEFICIENTE | G54: PRECO UNITARIO | H54: CUSTO TOTAL
B55: INSUMO | C55: ANP | D55: EMULSÃO ASFÁLTICA CATIÔNICA RR-1C(MEMÓRIA EM ANEXO) | E55: T | F55: 1 | G55: 3480.792613 | H55: =ROUNDDOWN(F55*G55,2) -> 3480.79
B56: PRODUÇÃO DA EQUIPE | E56: 1 | F56: CUSTO | H56: =SUM(H55:H55) -> 3480.79
B57: TOTAL | H57: =H56/E56 -> 3480.79 | I57: OK
B58: BDI % | H58: =1+$M$2 -> 1.15
B59: TOTAL DO SERVIÇO - R$ | H59: =ROUND(H57*H58,2) -> 4002.91
A61: F4 | B61: CODEVASF | E61: COMPOSIÇÃO DE PREÇO UNITÁRIO | I61: =H68 -> 496.49 | J61: =H70 -> 570.96
B62: OBRA: | C62: DRENAGEM E PAVIMENTAÇÃO ASFÁLTICA EM CBUQ - AV. JOANA GOMES DOS SANTOS E ROTATÓRIA (SÃO JOÃO DO PACUÍ / MG) | G62: DATA: | H62: =$H$2 -> ABRIL / 2025
B63: SERVIÇO: | C63: TRANSPORTE DE EMULSÃO ASFÁLTICA CATIONICA RR-1C | E63: Referência: | F63: CODEVASF | G63: UNIDADE: | H63: =VLOOKUP(A61,ORÇAMENTO!$A$11:$L$65,7) -> T
B65: TIPO ITEM | C65: CODIGO ITEM | D65: DESCRIÇÃO ITEM | E65: UNIDADE ITEM | F65: COEFICIENTE | G65: PRECO UNITARIO | H65: CUSTO TOTAL
B66: INSUMO | C66: - | D66: TRANSPORTE DE EMULSÃO ASFÁLTICA CATIONICA TIPO RR-1C, INCLUINDO CUSTO TOTAL DO TRANSPORTE (COMBUSTÍVEL, PEDÁGIOS, ETC.) E ICMS - MEMÓRIA ANEXA | E66: T | F66: 1 | G66: 496.49 | H66: =ROUNDDOWN(F66*G66,2) -> 496.49
B67: PRODUÇÃO DA EQUIPE | E67: 1 | F67: CUSTO | H67: =SUM(H66:H66) -> 496.49
B68: TOTAL | H68: =H67/E67 -> 496.49 | I68: OK
B69: BDI % | H69: =1+$M$2 -> 1.15
B70: TOTAL DO SERVIÇO - R$ | H70: =ROUND(H68*H69,2) -> 570.96
A72: F5 | B72: CODEVASF | E72: COMPOSIÇÃO DE PREÇO UNITÁRIO | I72: =H79 -> 4815.2 | J72: =H81 -> 5537.48
B73: OBRA: | C73: DRENAGEM E PAVIMENTAÇÃO ASFÁLTICA EM CBUQ - AV. JOANA GOMES DOS SANTOS E ROTATÓRIA (SÃO JOÃO DO PACUÍ / MG) | G73: DATA: | H73: =$H$2 -> ABRIL / 2025
B74: SERVIÇO: | C74: AQUISIÇÃO DE CONCRETO ASFÁLTICO DE PETRÓLEO - CAP 50/70 - EXCLUSIVE TRANSPORTE | E74: Referência: | F74: CODEVASF | G74: UNIDADE: | H74: =VLOOKUP(A72,ORÇAMENTO!$A$11:$L$65,7) -> T
B76: TIPO ITEM | C76: CODIGO ITEM | D76: DESCRIÇÃO ITEM | E76: UNIDADE ITEM | F76: COEFICIENTE | G76: PRECO UNITARIO | H76: CUSTO TOTAL
B77: INSUMO | C77: 1518 | D77: CIMENTOS ASFÁLTICO DE PETRÓLEO TIPO CAP 50/70 (MEMÓRIA EM ANEXO) | E77: T | F77: 1 | G77: 4815.205131 | H77: =ROUNDDOWN(F77*G77,2) -> 4815.2
B78: PRODUÇÃO DA EQUIPE | E78: 1 | F78: CUSTO | H78: =SUM(H77:H77) -> 4815.2
B79: TOTAL | H79: =H78/E78 -> 4815.2
B80: BDI % | H80: =1+$M$2 -> 1.15
B81: TOTAL DO SERVIÇO - R$ | H81: =ROUND(H79*H80,2) -> 5537.48
A83: F6 | B83: CODEVASF | E83: COMPOSIÇÃO DE PREÇO UNITÁRIO | I83: =H90 -> 387.92 | J83: =H92 -> 446.11
B84: OBRA: | C84: DRENAGEM E PAVIMENTAÇÃO ASFÁLTICA EM CBUQ - AV. JOANA GOMES DOS SANTOS E ROTATÓRIA (SÃO JOÃO DO PACUÍ / MG) | G84: DATA: | H84: =$H$2 -> ABRIL / 2025
B85: SERVIÇO: | C85: TRANSPORTE DE CONCRETO ASFÁLTICO DE PETRÓLEO - CAP 50/70 | E85: Referência: | F85: CODEVASF | G85: UNIDADE: | H85: =VLOOKUP(A83,ORÇAMENTO!$A$11:$L$65,7) -> T
B87: TIPO ITEM | C87: CODIGO ITEM | D87: DESCRIÇÃO ITEM | E87: UNIDADE ITEM | F87: COEFICIENTE | G87: PRECO UNITARIO | H87: CUSTO TOTAL
B88: INSUMO | C88: - | D88: TRANSPORTE DE CIMENTO ASFÁLTICO DE PETRÓLEO TIPO CAP 50-70, INCLUINDO CUSTO TOTAL DO TRANSPORTE (COMBUSTÍVEL, PEDÁGIOS, ETC.) E ICMS - MEMÓRIA ANEXA | E88: T | F88: 1 | G88: 387.92 | H88: =ROUNDDOWN(F88*G88,2) -> 387.92
B89: PRODUÇÃO DA EQUIPE | E89: 1 | F89: CUSTO | H89: =SUM(H88:H88) -> 387.92
B90: TOTAL | H90: =H89/E89 -> 387.92
B91: BDI % | H91: =1+$M$2 -> 1.15
B92: TOTAL DO SERVIÇO - R$ | H92: =ROUND(H90*H91,2) -> 446.11

Sheet BDI SERV
B1: DETALHAMENTO DO BDI - SERVIÇOS
B4: Item | C4: Descrição dos Serviços | D4: % - PV | E4: % - CD
B6: 1 | C6: ADMINISTRAÇÃO CENTRAL | E6: =SUM(E7:E9) -> 4.01
B7: 1.1 | C7: ESCRITÓRIO CENTRAL | E7: 4.01
B8: 1.2 | C8: VIAGENS
B9: 1.3 | C9: OUTROS
B11: 2 | C11: IMPOSTOS E TAXAS | D11: =SUM(D12:D15) -> 5.15 | E11: =SUM(E12:E15) -> 0
B12: 2.1 | C12: ISS - Proposta | D12: =D34*100 -> 1.5
B13: 2.2 | C13: PIS | D13: 0.65
B14: 2.3 | C14: Cofins | D14: 3
B15: 2.4 | C15: Contribuição Previdenciaria (CPRB)
B17: 3 | C17: TAXA DE RISCO | E17: =SUM(E18:E20) -> 0.96
B18: 3.1 | C18: SEGURO | E18: 0.2
B19: 3.2 | C19: RISCO | E19: 0.56
B20: 3.3 | C20: GARANTIA | E20: 0.2
B22: 4 | C22: DESPESAS FINANCEIRAS | E22: 1.11
B24: 5 | C24: LUCRO | E24: 8
B26: BDI APRESENTADO: | E26: =IF($D$41=$C$43,$D$43,IF($D$41=$C$44,$D$44,IF($D$41=$C$44,$D$44,IF($D$41=$C$45,$D$45,0)))) -> 20.85
C28: Legislação Municipal: | D28: Lei Complementar nº 410/2021
C29: Município: | D29: São João do Pacuí
C30: Alíquota ISSQN: | D30: 0.05 | E30: Município
C31: Base de Cálculo: | D31: 0.3 | E31: Art.64 §3º - IV a
C32: Valor Serviço: | D32: =ORÇAMENTO!O3 -> 0
C33: Dedução - Material (estimado): | D33: =0.7*D32 -> 0 | E33: =D33/D32 -> 
C34: ISSQN BDI: | D34: =IF(D32="",0,ROUND(IF(D31=D49,((1-(D33/D32))*D30),D30*D31),4)) -> 0.015 | E34: (*)
A36: Acórdão nº 2.622/2013 - TCU Plenário
A37: BDI = ARRED((((((1+(AC+TR)/100)*(1+DF/100)*(1+L/100))/(1-IMP/100))-1)*100);2)
B39: (*) É obrigação da licitante a verificação da Legislação Tributária vigente no município, bem como o cálculo dos valores totais de serviços e materiais estimados, para apresentação de sua proposta.
C41: Forma de Cálculo do BDI: | D41: BDI - Acórdão nº 2.622/2013 - TCU
C43: BDI - Digitado | D43: =ROUND(E6+E11+E17+E22+E24,2) -> 14.08
C44: BDI - Calculado | D44: =ROUND((((1+(E6/100+E22/100+E17/100))/(1-(D11/100+E24/100)))-1)*100,2) -> 22.14
C45: BDI - Acórdão nº 2.622/2013 - TCU | D45: =ROUND((((((1+(E6+E17)/100)*(1+E22/100)*(1+E24/100))/(1-D11/100))-1)*100),2) -> 20.85
D49: Dedução - Material | E49: Município
D50: 0.1 | E50: Simples Nacional
D51: 0.2 | E51: Municípios Indefinidos
D52: 0.3
D53: 0.4
D54: 0.5
D55: 0.6
D56: 0.7
D57: 0.8
D58: 0.9
D59: 1
D60: =E31 -> Art.64 §3º - IV a

Sheet BDI FORN
B1: DETALHAMENTO DO BDI - FORNECIMENTO (MATERIAL ASFÁLTICO)
B4: Item | C4: Descrição dos Serviços | D4: % | E4: %
D5: PV | E5: CD
B7: 1 | C7: ADMINISTRAÇÃO CENTRAL | E7: 3.45
B8: 1.1 | C8: ESCRITÓRIO CENTRAL
B9: 1.2 | C9: VIAGENS
B10: 1.3 | C10: OUTROS
B12: 2 | C12: IMPOSTOS E TAXAS | D12: =SUM(D13:D16) -> 3.65 | E12: =SUM(E13:E16) -> 4.56
B13: 2.1 | C13: ISS (*) | E13: =ROUND(D13*1.2515,2) -> 0
B14: 2.2 | C14: PIS | D14: 0.65 | E14: =ROUND(D14*1.2515,2) -> 0.81
B15: 2.3 | C15: Cofins | D15: 3 | E15: =ROUND(D15*1.2515,2) -> 3.75
B16: 2.4 | C16: CONTRIBUIÇÃO PREVIDENCIÁRIA SOBRE A RENDA BRUTA | D16: 0 | E16: =ROUND(D16*1.2515,2) -> 0
B18: 3 | C18: TAXA DE RISCO | E18: =SUM(E19:E22) -> 1.08
B19: 3.1 | C19: SEGURO | E19: 0.24
B20: 3.2 | C20: RISCO | E20: 0.6
B21: 3.3 | C21: GARANTIA | E21: 0.24
B23: 4 | C23: DESPESAS FINANCEIRAS | E23: 0.85
B25: 5 | C25: LUCRO | E25: 5.11
C27: BDI - CALCULADO | E27: =ROUND((((1+(E7+E18)/100)*(1+E23/100)*(1+E25/100)/(1-D12/100)-1)*100),2) -> 15
A29: BDI = ((1+((AC+S+R+G)/100))x(1+DF/100)x(1+L/100)/(1-I/100)-1)*100
B31: BDI (CALCULADO): | D31: =ROUND((((1+((E7+E18)/100))*(1+E23/100)*(1+E25/100))/(1-D12/100)-1)*100,2) -> 15 | E31: %
A37: BDI EM CONFORMIDADE COM OS ACÓRDÃOS Nº 2369/2011 e ACÓRDÃO Nº 2.622/2013 - TCU - PLENÁRIO

Sheet CRONOGRAMA
B1: CRONOGRAMA FÍSICO-FINANCEIRO
B2: OBRA: | C2: =ORÇAMENTO!C5 -> DRENAGEM E PAVIMENTAÇÃO ASFÁLTICA EM CBUQ - AV. JOANA GOMES DOS SANTOS E ROTATÓRIA (SÃO JOÃO DO PACUÍ / MG) | F2: VALOR: | G2: =ORÇAMENTO!L58 -> 1999927.25
F3: PRAZO: | G3: 180 DIAS
B5: ITEM | C5: ETAPAS/DESCRIÇAO | D5: FISICO/ FINANCEIRO | E5: TOTAL ETAPAS | F5: MÊS 1 | G5: MÊS 2 | H5: MÊS 3 | I5: MÊS 4 | J5: MÊS 5 | K5: MÊS 6 | L5: TOTAL
A6: A | B6: =ORÇAMENTO!B10 -> 1 | C6: =ORÇAMENTO!E10 -> SERVIÇOS PRELIMINARES | D6: FISICO | E6: =ROUND(E7/$G$2,4) -> 0.1011 | F6: 0.25 | G6: 0.15 | H6: 0.15 | I6: 0.15 | J6: 0.15 | K6: 0.15 | L6: =SUM(F6:K6) -> 1
D7: FINANCEIRO | E7: =ORÇAMENTO!L10 -> 202224.08 | F7: =ROUND($E$7*F6,2) -> 50556.02 | G7: =ROUND($E$7*G6,2) -> 30333.61 | H7: =ROUND($E$7*H6,2) -> 30333.61 | I7: =ROUND($E$7*I6,2) -> 30333.61 | J7: 30333.61 | K7: 30333.61 | L7: =SUM(F7:K7) -> 202224.07
A8: B | B8: =VLOOKUP(A8,ORÇAMENTO!$A$10:$L$58,2) -> 2 | C8: =VLOOKUP(A8,ORÇAMENTO!$A$10:$L$58,5) -> TERRAPLANAGEM E PAVIMENTAÇÃO | D8: FISICO | E8: =ROUND(E9/$G$2,4) -> 0.3411 | F8: 0.1 | G8: 0.2 | H8: 0.2 | I8: 0.2 | J8: 0.2 | K8: 0.1 | L8: =SUM(F8:K8) -> 1
D9: FINANCEIRO | E9: =ORÇAMENTO!L20 -> 682114.15 | F9: =ROUND($E$9*F8,2) -> 68211.42 | G9: =ROUND($E$9*G8,2) -> 136422.83 | H9: =ROUND($E$9*H8,2) -> 136422.83 | I9: =ROUND($E$9*I8,2) -> 136422.83 | J9: 136422.83 | K9: 68211.42 | L9: =SUM(F9:K9) -> 682114.16
A10: C | B10: =VLOOKUP(A10,ORÇAMENTO!$A$10:$L$58,2) -> 3 | C10: =VLOOKUP(A10,ORÇAMENTO!$A$10:$L$58,5) -> TRANSPORTE DE MATERIAIS | D10: FISICO | E10: =ROUND(E11/$G$2,4) -> 0.117 | F10: 0.25 | G10: 0.5 | H10: 0.25 | L10: =SUM(F10:K10) -> 1
D11: FINANCEIRO | E11: =ORÇAMENTO!L28 -> 234060 | F11: =ROUND($E$11*F10,2) -> 58515 | G11: =ROUND($E$11*G10,2) -> 117030 | H11: =ROUND($E$11*H10,2) -> 58515 | I11: =ROUND($E$11*I10,2) -> 0 | J11: 0 | K11: 0 | L11: =SUM(F11:K11)-0.04 -> 234059.96
A12: E | B12: =VLOOKUP(A12,ORÇAMENTO!$A$10:$L$58,2) -> 4 | C12: =VLOOKUP(A12,ORÇAMENTO!$A$10:$L$58,5) -> DRENAGEM E OBRAS COMPLEMENTARES | D12: FISICO | E12: =ROUND(E13/$G$2,4) -> 0.254 | F12: 0.3 | G12: 0.3 | H12: 0.1 | I12: 0.1 | J12: 0.1 | K12: 0.1 | L12: =SUM(F12:K12) -> 1
D13: FINANCEIRO | E13: =ORÇAMENTO!L34 -> 508023.12 | F13: =ROUND($E$13*F12,2) -> 152406.94 | G13: =ROUND($E$13*G12,2) -> 152406.94 | H13: =ROUND($E$13*H12,2) -> 50802.31 | I13: =ROUND($E$13*I12,2) -> 50802.31 | J13: 50802.31 | K13: 50802.31 | L13: =SUM(F13:K13)-0.02 -> 508023.1
A14: F | B14: =VLOOKUP(A14,ORÇAMENTO!$A$10:$L$58,2) -> 5 | C14: =VLOOKUP(A14,ORÇAMENTO!$A$10:$L$58,5) -> FORNECIMENTOS - MATERIAL ASFÁLTICO (BDI DIFERENCIADO) | D14: FISICO | E14: =ROUND(E15/$G$2,4) -> 0.1868 | G14: 0.2 | H14: 0.2 | I14: 0.2 | J14: 0.2 | K14: 0.2 | L14: =SUM(F14:K14) -> 1
D15: FINANCEIRO | E15: =ORÇAMENTO!L51 -> 373505.9 | F15: =ROUND($E$15*F14,2) -> 0 | G15: 74701.18 | H15: 74701.18 | I15: 74701.18 | J15: 74701.18 | K15: 74701.18 | L15: =SUM(F15:K15)-0.02 -> 373505.88
B16: TOTAL | D16: FISICO | E16: =SUM(F16:K16) -> 1 | F16: =F17/$E$17 -> 0.1648506864 | G16: =G17/$E$17 -> 0.2554565722 | H16: =H17/$E$17 -> 0.175393845 | I16: =I17/$E$17 -> 0.1461352807 | J16: 0.1461352807 | K16: 0.112028335 | L16: =SUM(F16:K16) -> 1
D17: FINANCEIRO | E17: =E11+E9+E7+E15+E13 -> 1999927.25 | F17: =F11+F9+F7+F15+F13 -> 329689.38 | G17: =G11+G9+G7+G15+G13 -> 510894.56 | H17: 350774.93 | I17: 292259.93 | J17: 292259.93 | K17: 224048.52 | L17: =SUM(F17:K17) -> 1999927.25
B19: OBSERVAÇÕES:
